fUSD/lending_fUSD_20251122
["ID","MTS","AMOUNT","RATE_DAILY","PERIOD"]
[394640037,1763806263826,-770.0301838,0.00016713,2]
[394640038,1763806263837,-758.47625791,0.0001676,2]
[394640039,1763806263846,-253.52638051,0.00016762,2]
[394640040,1763806263856,-484.0,0.00016762,2]
[394640041,1763806263867,-150.0,0.00016772,2]
[394640042,1763806263876,-200.0,0.00016772,2]
[394640043,1763806263885,-3435.0,0.00016772,2]
[394640044,1763806263895,-1319.0,0.00016772,2]
[394640045,1763806263905,-576.0,0.00016772,2]
[394640046,1763806263914,-609.784,0.00016772,2]
[394640047,1763806263924,-1601.547,0.00016772,2]
[394640048,1763806263933,-822.0,0.00016772,2]
[394640049,1763806263943,-798.021,0.00016772,2]
[394640050,1763806263952,-1256.0,0.00016772,2]
[394640051,1763806263961,-159.903552,0.00016773,2]
[394640052,1763806263971,-159.903552,0.00016773,2]
[394640053,1763806263979,-159.903552,0.00016773,2]
[394640054,1763806263989,-159.903552,0.00016773,2]
[394640055,1763806263999,-159.903552,0.00016773,2]
[394640056,1763806264008,-159.903552,0.00016773,2]
[394640057,1763806264017,-159.903552,0.00016773,2]
[394640058,1763806264026,-500.0,0.00016773,2]
[394640059,1763806264035,-159.903552,0.00016773,2]
[394640060,1763806264044,-159.903552,0.00016773,2]
[394640061,1763806264053,-159.903552,0.00016773,2]
[394640062,1763806264062,-500.0,0.00016773,2]
[394640063,1763806264072,-770.0301838,0.00016775,2]
[394640064,1763806264080,-166.66,0.00016812,2]
[394640065,1763806264089,-285.0,0.00016813,2]
[394640066,1763806264098,-502.59676737,0.00016827,2]
[394640067,1763806264107,-770.0301838,0.00016838,2]
[394640068,1763806264118,-229.12500649,0.00016849,2]
[394640069,1763806264127,-150.0,0.00016849,2]
[394640070,1763806264136,-150.0,0.00016849,2]
[394640071,1763806264145,-500.0,0.00016849,2]
[394640072,1763806264154,-247.82400161,0.00016849,2]
[394640073,1763806264163,-500.0,0.00016849,2]
[394640074,1763806264172,-651.0,0.00016849,2]
[394640075,1763806264182,-500.0,0.00016849,2]
[394640076,1763806264191,-150.0,0.00016849,2]
[394640077,1763806264200,-155.60571846,0.00016849,2]
[394640078,1763806264209,-500.0,0.00016849,2]
[394640079,1763806264218,-500.0,0.00016849,2]
[394640080,1763806264227,-500.0,0.00016849,2]
[394640081,1763806264236,-370.32314526,0.00016849,2]
[394640082,1763806264245,-500.0,0.00016849,2]
[394640083,1763806264254,-469.0,0.00016849,2]
[394640084,1763806264264,-553.0,0.00016849,2]
[394640085,1763806264273,-554.24080951,0.00016859,2]
[394640086,1763806264282,-217.30260111,0.00016859,2]
[394640087,1763806264290,-168.0,0.00016878,2]
[394640088,1763806264300,-355.53126833,0.00016886,2]
[394640089,1763806264309,-758.47625791,0.000169,2]
[394640090,1763806264318,-770.0301838,0.000169,2]
[394640091,1763806264327,-840.40059214,0.000169,2]
[394640092,1763806264337,-209.09854269,0.000169,2]
[394640093,1763806264345,-10024.71496974,0.000169,2]
[394640094,1763806264354,-301.82008914,0.00016957,2]
[394640095,1763806264363,-108146.0,0.00016959,2]
[394640096,1763806264372,-5992.0,0.00016959,2]
[394640097,1763806264381,-1422.0,0.00016959,2]
[394640098,1763806264389,-352.0,0.00016968,2]
[394640099,1763806264398,-500.0,0.00016973,2]
[394640100,1763806264407,-500.0,0.00016973,2]
[394640101,1763806264416,-161.45898674,0.00016973,2]
[394640102,1763806264424,-159.903552,0.00016973,2]
[394640103,1763806264434,-159.903552,0.00016973,2]
[394640104,1763806264443,-159.903552,0.00016973,2]
[394640105,1763806264452,-159.903552,0.00016973,2]
[394640106,1763806264461,-159.903552,0.00016973,2]
[394640107,1763806264470,-159.903552,0.00016973,2]
[394640108,1763806264479,-159.903552,0.00016973,2]
[394640109,1763806264487,-215.18841804,0.00016973,2]
[394640110,1763806264497,-159.903552,0.00016973,2]
[394640111,1763806264507,-159.903552,0.00016973,2]
[394640112,1763806264517,-159.903552,0.00016973,2]
[394640113,1763806264527,-159.903552,0.00016973,2]
[394640114,1763806264537,-500.0,0.00016973,2]
[394640115,1763806264546,-502.76504615,0.00016973,2]
[394640116,1763806264555,-501.168198,0.00016973,2]
[394640117,1763806264565,-501.22777875,0.00016973,2]
[394640118,1763806264574,-502.4332661,0.00016973,2]
[394640119,1763806264583,-556.47115988,0.00016973,2]
[394640120,1763806264592,-500.0,0.00016973,2]
[394640121,1763806264601,-150.0,0.00016986,2]
[394640122,1763806264612,-206.13665268,0.00016986,2]
[394640123,1763806264621,-500.0,0.00016986,2]
[394640124,1763806264629,-500.0,0.00016986,2]
[394640125,1763806264638,-651.0,0.00016986,2]
[394640126,1763806264647,-500.0,0.00016986,2]
[394640127,1763806264656,-239.12847958,0.00016986,2]
[394640128,1763806264665,-500.0,0.00016986,2]
[394640129,1763806264673,-500.0,0.00016986,2]
[394640130,1763806264682,-500.0,0.00016986,2]
[394640131,1763806264691,-500.0,0.00016986,2]
[394640132,1763806264700,-469.0,0.00016986,2]
[394640133,1763806264709,-553.0,0.00016986,2]
[394640134,1763806264718,-500.0,0.00016986,2]
[394640135,1763806264727,-500.0,0.00016986,2]
[394640136,1763806264740,-205.09694772,0.00016986,2]
[394640137,1763806264749,-500.0,0.00016986,2]
[394640138,1763806264757,-500.0,0.00016986,2]
[394640139,1763806264766,-500.0,0.00016986,2]
[394640140,1763806264776,-500.0,0.00016986,2]
[394640141,1763806264785,-500.0,0.00016986,2]
[394640142,1763806264795,-500.0,0.00016986,2]
[394640143,1763806264804,-500.0,0.00016986,2]
[394640144,1763806264815,-867.5,0.00016986,2]
[394640145,1763806264823,-500.0,0.00016986,2]
[394640146,1763806264832,-500.0,0.00016986,2]
[394640147,1763806264841,-500.0,0.00016986,2]
[394640148,1763806264850,-500.0,0.00016986,2]
[394640149,1763806264859,-500.0,0.00016986,2]
[394640150,1763806264868,-643.22,0.00016986,2]
[394640151,1763806264877,-843.09,0.00016986,2]
[394640152,1763806264886,-664.19,0.00016986,2]
[394640153,1763806264895,-579.49,0.00016986,2]
[394640154,1763806264904,-944.02,0.00016986,2]
[394640155,1763806264913,-500.0,0.00016986,2]
[394640156,1763806264922,-500.0,0.00016986,2]
[394640157,1763806264931,-512.07631663,0.00016986,2]
[394640158,1763806264940,-781.7,0.00016986,2]
[394640159,1763806264949,-500.0,0.00016986,2]
[394640160,1763806264959,-500.0,0.00016986,2]
[394640161,1763806264968,-409.88234134,0.00016986,2]
[394640162,1763806264977,-490.01712623,0.00016986,2]
[394640163,1763806264986,-754.3,0.00016986,2]
[394640164,1763806264995,-500.0,0.00016986,2]
[394640165,1763806265004,-500.0,0.00016986,2]
[394640166,1763806265013,-500.0,0.00016986,2]
[394640167,1763806265022,-826.89,0.00016986,2]
[394640168,1763806265031,-500.0,0.00016986,2]
[394640169,1763806265041,-500.0,0.00016986,2]
[394640170,1763806265049,-760.07,0.00016986,2]
[394640171,1763806265059,-500.0,0.00016986,2]
[394640172,1763806265068,-660.25,0.00016986,2]
[394640173,1763806265078,-500.0,0.00016986,2]
[394640174,1763806265087,-500.0,0.00016986,2]
[394640175,1763806265096,-500.0,0.00016986,2]
[394640176,1763806265105,-500.0,0.00016986,2]
[394640177,1763806265115,-620.59,0.00016986,2]
[394640178,1763806265124,-718.76,0.00016986,2]
[394640179,1763806265133,-589.29,0.00016986,2]
[394640180,1763806265142,-500.0,0.00016986,2]
[394640181,1763806265152,-500.0,0.00016986,2]
[394640182,1763806265161,-523.48,0.00016986,2]
[394640183,1763806265171,-500.0,0.00016986,2]
[394640184,1763806265181,-500.0,0.00016986,2]
[394640185,1763806265190,-500.0,0.00016986,2]
[394640186,1763806265199,-500.0,0.00016986,2]
[394640187,1763806265208,-500.0,0.00016986,2]
[394640188,1763806265218,-1151.27,0.00016986,2]
[394640189,1763806265227,-539.63,0.00016986,2]
[394640190,1763806265236,-500.0,0.00016986,2]
[394640191,1763806265246,-943.25,0.00016986,2]
[394640192,1763806265254,-500.0,0.00016986,2]
[394640193,1763806265264,-532.89,0.00016986,2]
[394640194,1763806265273,-500.0,0.00016986,2]
[394640195,1763806265282,-500.0,0.00016986,2]
[394640196,1763806265291,-717.92,0.00016986,2]
[394640197,1763806265300,-500.0,0.00016986,2]
[394640198,1763806265310,-506.4542836,0.00016986,2]
[394640199,1763806265319,-500.0,0.00016986,2]
[394640200,1763806265328,-791.9,0.00016986,2]
[394640201,1763806265337,-500.0,0.00016986,2]
[394640202,1763806265347,-671.16,0.00016986,2]
[394640203,1763806265357,-513.69,0.00016986,2]
[394640204,1763806265366,-903.01,0.00016986,2]
[394640205,1763806265375,-718.46,0.00016986,2]
[394640206,1763806265384,-500.0,0.00016986,2]
[394640207,1763806265394,-500.0,0.00016986,2]
[394640208,1763806265403,-500.0,0.00016986,2]
[394640209,1763806265412,-500.0,0.00016986,2]
[394640210,1763806265421,-619.27,0.00016986,2]
[394640211,1763806265431,-633.07,0.00016986,2]
[394640212,1763806265440,-512.4,0.00016986,2]
[394640213,1763806265449,-734.0,0.00016986,2]
[394640214,1763806265458,-686.05,0.00016986,2]
[394640215,1763806265467,-689.73,0.00016986,2]
[394640216,1763806265476,-500.0,0.00016986,2]
[394640217,1763806265486,-500.0,0.00016986,2]
[394640218,1763806265495,-515.09,0.00016986,2]
[394640219,1763806265504,-909.79,0.00016986,2]
[394640220,1763806265513,-534.13,0.00016986,2]
[394640221,1763806265522,-500.0,0.00016986,2]
[394640222,1763806265531,-987.88,0.00016986,2]
[394640223,1763806265540,-500.0,0.00016986,2]
[394640224,1763806265551,-500.0,0.00016986,2]
[394640225,1763806265560,-500.0,0.00016986,2]
[394640226,1763806265570,-1118.33,0.00016986,2]
[394640227,1763806265579,-593.96,0.00016986,2]
[394640228,1763806265589,-532.39,0.00016986,2]
[394640229,1763806265599,-500.0,0.00016986,2]
[394640230,1763806265608,-500.0,0.00016986,2]
[394640231,1763806265623,-500.0,0.00016986,2]
[394640232,1763806265632,-436.49456996,0.00016986,2]
[394640233,1763806265642,-500.0,0.00016986,2]
[394640234,1763806265651,-500.0,0.00016986,2]
[394640235,1763806265661,-500.0,0.00016986,2]
[394640236,1763806265672,-500.0,0.00016986,2]
[394640237,1763806265682,-500.0,0.00016986,2]
[394640238,1763806265691,-500.0,0.00016986,2]
[394640239,1763806265701,-160.53782802,0.00016986,2]
[394640240,1763806265710,-500.0,0.00016986,2]
[394640241,1763806265722,-500.0,0.00016986,2]
[394640242,1763806265733,-500.0,0.00016986,2]
[394640243,1763806265744,-500.0,0.00016986,2]
[394640244,1763806265755,-643.4,0.00016986,2]
[394640245,1763806265767,-745.16,0.00016986,2]
[394640246,1763806265778,-760.48,0.00016986,2]
[394640247,1763806265788,-500.0,0.00016986,2]
[394640248,1763806265799,-767.631,0.00016986,2]
[394640249,1763806265810,-176.594,0.00016986,2]
[394640250,1763806265820,-500.0,0.00016986,2]
[394640251,1763806265830,-500.0,0.00016986,2]
[394640252,1763806265839,-500.0,0.00016986,2]
[394640253,1763806265849,-660.26,0.00016986,2]
[394640254,1763806265859,-500.0,0.00016986,2]
[394640255,1763806265868,-500.0,0.00016986,2]
[394640256,1763806265877,-500.0,0.00016986,2]
[394640257,1763806265887,-500.0,0.00016986,2]
[394640258,1763806265897,-643.35,0.00016986,2]
[394640259,1763806265906,-536.96,0.00016986,2]
[394640260,1763806265916,-553.65726474,0.00016986,2]
[394640261,1763806265926,-561.03,0.00016986,2]
[394640262,1763806265935,-667.06,0.00016986,2]
[394640263,1763806265944,-500.0,0.00016986,2]
[394640264,1763806265952,-500.0,0.00016986,2]
[394640265,1763806265961,-500.0,0.00016986,2]
[394640266,1763806265970,-571.59,0.00016986,2]
[394640267,1763806265980,-840.36,0.00016986,2]
[394640268,1763806265989,-500.0,0.00016986,2]
[394640269,1763806265998,-182.29786792,0.00016986,2]
[394640270,1763806266007,-588.85,0.00016986,2]
[394640271,1763806266016,-527.44,0.00016986,2]
[394640272,1763806266025,-500.0,0.00016986,2]
[394640273,1763806266035,-500.0,0.00016986,2]
[394640274,1763806266044,-1117.89,0.00016986,2]
[394640275,1763806266053,-500.0,0.00016986,2]
[394640276,1763806266062,-761.79,0.00016986,2]
[394640277,1763806266071,-620.55,0.00016986,2]
[394640278,1763806266080,-500.0,0.00016986,2]
[394640279,1763806266089,-593.36,0.00016986,2]
[394640280,1763806266100,-500.0,0.00016986,2]
[394640281,1763806266109,-676.83,0.00016986,2]
[394640282,1763806266119,-900.44,0.00016986,2]
[394640283,1763806266128,-1015.0,0.00016986,2]
[394640284,1763806266137,-588.06,0.00016986,2]
[394640285,1763806266146,-567.7644056,0.00016986,2]
[394640286,1763806266155,-511.04,0.00016986,2]
[394640287,1763806266164,-500.0,0.00016986,2]
[394640288,1763806266173,-1144.77,0.00016986,2]
[394640289,1763806266182,-787.96,0.00016986,2]
[394640290,1763806266191,-500.0,0.00016986,2]
[394640291,1763806266200,-500.0,0.00016986,2]
[394640292,1763806266209,-500.0,0.00016986,2]
[394640293,1763806266218,-865.95,0.00016986,2]
[394640294,1763806266227,-592.3,0.00016986,2]
[394640295,1763806266236,-540.6,0.00016986,2]
[394640296,1763806266247,-500.0,0.00016986,2]
[394640297,1763806266256,-790.49,0.00016986,2]
[394640298,1763806266266,-500.0,0.00016986,2]
[394640299,1763806266276,-580.1,0.00016986,2]
[394640300,1763806266285,-500.0,0.00016986,2]
[394640301,1763806266294,-500.0,0.00016986,2]
[394640302,1763806266303,-766.2,0.00016986,2]
[394640303,1763806266313,-557.29,0.00016986,2]
[394640304,1763806266322,-500.0,0.00016986,2]
[394640305,1763806266331,-500.0,0.00016986,2]
[394640306,1763806266340,-637.13,0.00016986,2]
[394640307,1763806266349,-1511.77,0.00016986,2]
[394640308,1763806266359,-699.88,0.00016986,2]
[394640309,1763806266368,-705.23,0.00016986,2]
[394640310,1763806266377,-500.0,0.00016986,2]
[394640311,1763806266386,-497.67879639,0.00016986,2]
[394640312,1763806266396,-500.0,0.00016986,2]
[394640313,1763806266405,-768.25,0.00016986,2]
[394640314,1763806266414,-561.04,0.00016986,2]
[394640315,1763806266424,-500.0,0.00016986,2]
[394640316,1763806266433,-681.07,0.00016986,2]
[394640317,1763806266442,-500.0,0.00016986,2]
[394640318,1763806266451,-170.92985101,0.00016986,2]
[394640319,1763806266460,-500.0,0.00016986,2]
[394640320,1763806266469,-364.98336872,0.00016986,2]
[394640321,1763806266478,-889.28,0.00016986,2]
[394640322,1763806266487,-500.0,0.00016986,2]
[394640323,1763806266497,-500.0,0.00016986,2]
[394640324,1763806266506,-500.0,0.00016986,2]
[394640325,1763806266515,-500.0,0.00016986,2]
[394640326,1763806266525,-500.0,0.00016986,2]
[394640327,1763806266535,-500.0,0.00016986,2]
[394640328,1763806266544,-910.7,0.00016986,2]
[394640329,1763806266554,-581.69,0.00016986,2]
[394640330,1763806266563,-681.0,0.00016986,2]
[394640331,1763806266572,-647.5033653,0.00016986,2]
[394640332,1763806266581,-500.0,0.00016986,2]
[394640333,1763806266590,-500.0,0.00016986,2]
[394640334,1763806266599,-561.58,0.00016986,2]
[394640335,1763806266608,-520.44,0.00016986,2]
[394640336,1763806266618,-892.07,0.00016986,2]
[394640337,1763806266628,-500.0,0.00016986,2]
[394640338,1763806266637,-500.0,0.00016986,2]
[394640339,1763806266646,-648.76,0.00016986,2]
[394640340,1763806266656,-540.37,0.00016986,2]
[394640341,1763806266665,-500.0,0.00016986,2]
[394640342,1763806266675,-500.0,0.00016986,2]
[394640343,1763806266685,-1478.21,0.00016986,2]
[394640344,1763806266694,-500.0,0.00016986,2]
[394640345,1763806266704,-500.0,0.00016986,2]
[394640346,1763806266713,-680.96,0.00016986,2]
[394640347,1763806266723,-500.0,0.00016986,2]
[394640348,1763806266733,-500.0,0.00016986,2]
[394640349,1763806266745,-500.0,0.00016986,2]
[394640350,1763806266755,-685.91,0.00016986,2]
[394640351,1763806266764,-500.0,0.00016986,2]
[394640352,1763806266775,-778.77,0.00016986,2]
[394640353,1763806266784,-500.0,0.00016986,2]
[394640354,1763806266794,-500.0,0.00016986,2]
[394640355,1763806266804,-500.0,0.00016986,2]
[394640356,1763806266815,-500.0,0.00016986,2]
[394640357,1763806266825,-714.38,0.00016986,2]
[394640358,1763806266835,-500.0,0.00016986,2]
[394640359,1763806266844,-500.0,0.00016986,2]
[394640360,1763806266854,-758.68,0.00016986,2]
[394640361,1763806266863,-745.24,0.00016986,2]
[394640362,1763806266873,-758.78,0.00016986,2]
[394640363,1763806266883,-500.0,0.00016986,2]
[394640364,1763806266995,-1003.75,0.00016986,2]
[394640365,1763806267013,-500.0,0.00016986,2]
[394640366,1763806267022,-500.0,0.00016986,2]
[394640367,1763806267031,-500.0,0.00016986,2]
[394640368,1763806267040,-500.0,0.00016986,2]
[394640369,1763806267049,-192.8660115,0.00016986,2]
[394640370,1763806267059,-500.0,0.00016986,2]
[394640371,1763806267068,-753.49,0.00016986,2]
[394640372,1763806267078,-697.04,0.00016986,2]
[394640373,1763806267088,-595.07,0.00016986,2]
[394640374,1763806267098,-500.0,0.00016986,2]
[394640375,1763806267107,-892.51,0.00016986,2]
[394640376,1763806267116,-500.0,0.00016986,2]
[394640377,1763806267125,-507.73,0.00016986,2]
[394640378,1763806267134,-500.0,0.00016986,2]
[394640379,1763806267143,-500.0,0.00016986,2]
[394640380,1763806267153,-500.0,0.00016986,2]
[394640381,1763806267163,-817.08,0.00016986,2]
[394640382,1763806267173,-500.0,0.00016986,2]
[394640383,1763806267183,-500.0,0.00016986,2]
[394640384,1763806267192,-1276.37,0.00016986,2]
[394640385,1763806267201,-598.13,0.00016986,2]
[394640386,1763806267211,-500.0,0.00016986,2]
[394640387,1763806267220,-172.19070464,0.00016986,2]
[394640388,1763806267229,-500.0,0.00016986,2]
[394640389,1763806267238,-624.04932756,0.00016986,2]
[394640390,1763806267248,-683.96,0.00016986,2]
[394640391,1763806267257,-500.0,0.00016986,2]
[394640392,1763806267266,-500.0,0.00016986,2]
[394640393,1763806267276,-724.4,0.00016986,2]
[394640394,1763806267285,-500.0,0.00016986,2]
[394640395,1763806267295,-700.99,0.00016986,2]
[394640396,1763806267304,-548.75246504,0.00016986,2]
[394640397,1763806267313,-506.6,0.00016986,2]
[394640398,1763806267322,-500.0,0.00016986,2]
[394640399,1763806267332,-500.0,0.00016986,2]
[394640400,1763806267341,-830.04,0.00016986,2]
[394640401,1763806267350,-500.0,0.00016986,2]
[394640402,1763806267360,-509.8,0.00016986,2]
[394640403,1763806267370,-500.0,0.00016986,2]
[394640404,1763806267379,-500.0,0.00016986,2]
[394640405,1763806267389,-645.82,0.00016986,2]
[394640406,1763806267398,-500.0,0.00016986,2]
[394640407,1763806267407,-500.0,0.00016986,2]
[394640408,1763806267416,-500.0,0.00016986,2]
[394640409,1763806267426,-500.0,0.00016986,2]
[394640410,1763806267435,-500.0,0.00016986,2]
[394640411,1763806267445,-500.0,0.00016986,2]
[394640412,1763806267454,-651.49,0.00016986,2]
[394640413,1763806267463,-500.0,0.00016986,2]
[394640414,1763806267472,-500.0,0.00016986,2]
[394640415,1763806267481,-500.0,0.00016986,2]
[394640416,1763806267490,-680.93,0.00016986,2]
[394640417,1763806267499,-950.5,0.00016986,2]
[394640418,1763806267509,-500.0,0.00016986,2]
[394640419,1763806267519,-768.8,0.00016986,2]
[394640420,1763806267529,-1163.93,0.00016986,2]
[394640421,1763806267539,-938.85,0.00016986,2]
[394640422,1763806267548,-357.50952081,0.00016986,2]
[394640423,1763806267557,-500.0,0.00016986,2]
[394640424,1763806267567,-816.31,0.00016986,2]
[394640425,1763806267576,-500.0,0.00016986,2]
[394640426,1763806267586,-500.0,0.00016986,2]
[394640427,1763806267596,-695.83,0.00016986,2]
[394640428,1763806267605,-500.0,0.00016986,2]
[394640429,1763806267614,-1025.64,0.00016986,2]
[394640430,1763806267624,-692.67,0.00016986,2]
[394640431,1763806267635,-970.47,0.00016986,2]
[394640432,1763806267646,-500.0,0.00016986,2]
[394640433,1763806267656,-500.0,0.00016986,2]
[394640434,1763806267667,-500.0,0.00016986,2]
[394640435,1763806267677,-500.0,0.00016986,2]
[394640436,1763806267686,-5173.16,0.00016986,2]
[394640437,1763806267696,-500.0,0.00016986,2]
[394640438,1763806267706,-500.0,0.00016986,2]
[394640439,1763806267716,-500.0,0.00016986,2]
[394640440,1763806267732,-500.0,0.00016986,2]
[394640441,1763806267743,-500.0,0.00016986,2]
[394640442,1763806267753,-500.0,0.00016986,2]
[394640443,1763806267767,-500.0,0.00016986,2]
[394640444,1763806267776,-617.00884319,0.00016986,2]
[394640445,1763806267786,-500.0,0.00016986,2]
[394640446,1763806267797,-974.11,0.00016986,2]
[394640447,1763806267808,-500.0,0.00016986,2]
[394640448,1763806267818,-500.0,0.00016986,2]
[394640449,1763806267828,-500.0,0.00016986,2]
[394640450,1763806267837,-500.0,0.00016986,2]
[394640451,1763806267847,-942.8,0.00016986,2]
[394640452,1763806267856,-300.0,0.00016986,2]
[394640453,1763806267866,-500.0,0.00016986,2]
[394640454,1763806267875,-1130.33,0.00016986,2]
[394640455,1763806267885,-500.0,0.00016986,2]
[394640456,1763806267894,-500.0,0.00016986,2]
[394640457,1763806267903,-500.0,0.00016986,2]
[394640458,1763806267912,-2544.87,0.00016986,2]
[394640459,1763806267922,-804.3,0.00016986,2]
[394640460,1763806267931,-674.23,0.00016986,2]
[394640461,1763806267941,-1191.45,0.00016986,2]
[394640462,1763806267950,-585.41,0.00016986,2]
[394640463,1763806267959,-500.0,0.00016986,2]
[394640464,1763806267968,-500.0,0.00016986,2]
[394640465,1763806267977,-500.0,0.00016986,2]
[394640466,1763806267986,-500.0,0.00016986,2]
[394640467,1763806267995,-839.14,0.00016986,2]
[394640468,1763806268004,-500.0,0.00016986,2]
[394640469,1763806268014,-564.02,0.00016986,2]
[394640470,1763806268024,-505.12,0.00016986,2]
[394640471,1763806268034,-559.83,0.00016986,2]
[394640472,1763806268044,-336.65597628,0.00016986,2]
[394640473,1763806268054,-500.0,0.00016986,2]
[394640474,1763806268064,-500.0,0.00016986,2]
[394640475,1763806268073,-500.0,0.00016986,2]
[394640476,1763806268083,-500.0,0.00016986,2]
[394640477,1763806268093,-1055.95,0.00016986,2]
[394640478,1763806268103,-1463.02,0.00016986,2]
[394640479,1763806268112,-372.13742263,0.00016986,2]
[394640480,1763806268122,-521.42,0.00016986,2]
[394640481,1763806268132,-733.24,0.00016986,2]
[394640482,1763806268142,-411.08437286,0.00016986,2]
[394640483,1763806268151,-782.33,0.00016986,2]
[394640484,1763806268161,-472.1564987,0.00016986,2]
[394640485,1763806268172,-451.18839468,0.00016986,2]
[394640486,1763806268181,-500.0,0.00016986,2]
[394640487,1763806268191,-734.36,0.00016986,2]
[394640488,1763806268200,-576.40208378,0.00016986,2]
[394640489,1763806268210,-500.0,0.00016986,2]
[394640490,1763806268220,-500.0,0.00016986,2]
[394640491,1763806268230,-558.64407897,0.00016986,2]
[394640492,1763806268240,-500.0,0.00016986,2]
[394640493,1763806268249,-839.69,0.00016986,2]
[394640494,1763806268259,-500.0,0.00016986,2]
[394640495,1763806268269,-500.0,0.00016986,2]
[394640496,1763806268279,-1249.82,0.00016986,2]
[394640497,1763806268288,-1049.8,0.00016986,2]
[394640498,1763806268298,-523.31,0.00016986,2]
[394640499,1763806268308,-500.0,0.00016986,2]
[394640500,1763806268318,-1579.91,0.00016986,2]
[394640501,1763806268328,-500.0,0.00016986,2]
[394640502,1763806268339,-500.0,0.00016986,2]
[394640503,1763806268349,-500.0,0.00016986,2]
[394640504,1763806268360,-500.0,0.00016986,2]
[394640505,1763806268369,-500.0,0.00016986,2]
[394640506,1763806268379,-532.69,0.00016986,2]
[394640507,1763806268390,-570.72,0.00016986,2]
[394640508,1763806268400,-500.0,0.00016986,2]
[394640509,1763806268411,-515.86,0.00016986,2]
[394640510,1763806268420,-1073.42,0.00016986,2]
[394640511,1763806268430,-1688.87,0.00016986,2]
[394640512,1763806268440,-500.0,0.00016986,2]
[394640513,1763806268450,-500.0,0.00016986,2]
[394640514,1763806268461,-602.73,0.00016986,2]
[394640515,1763806268470,-786.03,0.00016986,2]
[394640516,1763806268480,-500.0,0.00016986,2]
[394640517,1763806268489,-500.0,0.00016986,2]
[394640518,1763806268500,-500.0,0.00016986,2]
[394640519,1763806268510,-1309.89,0.00016986,2]
[394640520,1763806268520,-500.0,0.00016986,2]
[394640521,1763806268531,-500.0,0.00016986,2]
[394640522,1763806268541,-500.0,0.00016986,2]
[394640523,1763806268553,-500.0,0.00016986,2]
[394640524,1763806268568,-919.35,0.00016986,2]
[394640525,1763806268578,-500.0,0.00016986,2]
[394640526,1763806268588,-523.55,0.00016986,2]
[394640527,1763806268598,-606.55,0.00016986,2]
[394640528,1763806268608,-816.25,0.00016986,2]
[394640529,1763806268618,-500.0,0.00016986,2]
[394640530,1763806268634,-500.0,0.00016986,2]
[394640531,1763806268644,-500.0,0.00016986,2]
[394640532,1763806268655,-500.0,0.00016986,2]
[394640533,1763806268665,-500.0,0.00016986,2]
[394640534,1763806268676,-1202.89,0.00016986,2]
[394640535,1763806268687,-696.52,0.00016986,2]
[394640536,1763806268697,-532.1,0.00016986,2]